bitfinex-derivatives/quotes_BNBF0:USTF0_20250111
["timestamp","ask_amount","ask_price","bid_price","bid_amount"]
[1736624327908,1.07545201,695.72,694.7,0.28789405]
[1736624329719,1.07545201,695.75,694.7,0.28789405]
[1736624330618,1.07545201,695.76,694.7,0.28789405]
[1736624331515,1.07545201,695.77,694.7,0.28789405]
[1736624333518,1.07545201,695.84,694.7,0.28789405]
[1736624334723,1.07545201,695.83,694.7,0.28789405]
[1736624336025,1.07545201,695.82,694.7,0.28789405]
[1736624337424,1.07545201,695.83,694.7,0.28789405]
[1736624341122,1.07545201,695.77,694.7,0.28789405]
[1736624342923,1.07545201,695.76,694.7,0.28789405]
[1736624343925,1.07545201,695.77,694.7,0.28789405]
[1736624349628,1.07545201,695.83,694.7,0.28789405]
[1736624350726,0.28736045,695.99,694.7,0.28789405]
[1736624350727,1.07545201,695.89,694.7,0.28789405]
[1736624355029,1.07545201,695.88,694.7,0.28789405]
[1736624356022,1.07545201,695.83,694.7,0.28789405]
[1736624359932,1.07545201,695.77,694.7,0.28789405]
[1736624362329,1.07545201,695.76,694.7,0.28789405]
[1736624363432,1.07545201,695.79,694.7,0.28789405]
[1736624366037,1.07545201,695.8,694.7,0.28789405]
[1736624368533,1.07545201,695.92,694.7,0.28789405]
[1736624368732,1.07545201,695.92,694.64,2.87615998]
[1736624369138,1.07545201,695.93,694.64,2.87615998]
[1736624369735,1.07545201,695.94,694.64,2.87615998]
[1736624369931,1.07545201,695.94,694.58,2.87615998]
[1736624370832,1.07545201,695.98,694.58,2.87615998]
[1736624371536,1.07545201,695.98,694.5,2.87615998]
[1736624372238,1.50120247,696.41,694.5,2.87615998]
[1736624372239,1.07545201,696.1,694.57,1.29026922]
[1736624373138,1.07545201,696.12,694.53,1.29026922]
[1736624374038,1.07545201,696.13,694.53,1.29026922]
[1736624374241,1.07545201,696.13,694.53,4.35226634]
[1736624374439,1.07545201,696.13,694.54,2.87615998]
[1736624375636,1.07545201,696.15,694.54,5.9381571]
[1736624375835,1.07545201,696.15,694.55,2.87615998]
[1736624377442,1.07545201,696.13,694.52,2.87615998]
[1736624378346,1.07545201,696.02,694.52,2.87615998]
[1736624378542,1.07545201,696.02,694.49,2.87615998]
[1736624379745,1.07545201,696.02,694.49,5.9381571]
[1736624379945,1.07545201,696.02,694.5,2.87615998]
[1736624380347,1.07545201,696.02,694.6,1.29026922]
[1736624380544,1.07545201,695.97,694.6,1.29026922]
[1736624385344,1.07545201,695.96,694.6,1.29026922]
[1736624386647,1.07545201,695.96,694.6,4.1664292]
[1736624387048,1.07545201,696.02,694.66,1.29026922]
[1736624388045,1.07545201,696.02,694.62,2.87615998]
[1736624388046,1.07545201,696.02,694.67,1.29026922]
[1736624390047,1.07545201,696.02,694.64,2.87615998]
[1736624390048,1.07545201,696.01,694.68,1.29026922]
[1736624390855,1.07545201,696.0,694.68,1.29026922]
[1736624391853,1.07545201,696.01,694.68,1.29026922]
[1736624392257,1.07545201,696.01,694.69,0.28789819]
[1736624392955,1.07545201,696.0,694.69,1.57816741]
[1736624393357,1.07545201,696.0,694.69,4.64016453]
[1736624393557,1.07545201,696.0,694.7,2.87615998]
[1736624393958,1.07545201,695.92,694.7,2.87615998]
[1736624394857,1.07545201,695.91,694.7,2.87615998]
[1736624395757,1.07545201,695.9,694.7,2.87615998]
[1736624396158,1.07545201,695.9,694.69,0.28789819]
[1736624397359,1.07545201,695.89,694.69,0.28789819]
[1736624398058,1.07545201,695.88,694.69,0.28789819]
[1736624399860,1.07545201,695.86,694.69,0.28789819]
[1736624400959,1.07545201,695.91,694.69,0.28789819]
[1736624401863,1.07545201,695.92,694.69,0.28789819]
[1736624402762,1.07545201,695.91,694.69,0.28789819]
[1736624403764,1.07545201,695.92,694.69,0.28789819]
[1736624408066,1.07545201,695.92,694.69,3.16405817]
[1736624408267,1.07545201,695.85,694.69,3.16405817]
[1736624409466,1.07545201,695.85,694.69,0.28789819]
[1736624410570,1.07545201,695.84,694.69,0.28789819]
[1736624411774,1.07545201,695.83,694.69,0.28789819]
[1736624412776,1.07545201,695.84,694.69,0.28789819]
[1736624413776,1.07545201,695.83,694.69,0.28789819]
[1736624416177,1.07545201,695.84,694.69,0.28789819]
[1736624418479,1.07545201,695.83,694.69,0.28789819]
[1736624419379,1.07545201,695.85,694.69,0.28789819]
[1736624421774,1.07545201,695.84,694.69,0.28789819]
[1736624424783,0.88896749,696.3,694.69,0.28789819]
[1736624424784,1.07545201,695.91,694.69,1.57816741]
[1736624426082,1.07545201,695.94,694.74,1.29026922]
[1736624426281,1.07545201,695.94,694.74,1.57814669]
[1736624427082,1.07545201,695.97,694.77,1.29026922]
[1736624427984,1.07545201,695.98,694.78,1.29026922]
[1736624428581,1.07545201,695.98,694.79,0.28785676]
[1736624428984,1.07545201,696.0,694.79,0.28785676]
[1736624429685,1.07545201,695.99,694.79,0.28785676]
[1736624432286,1.07545201,696.26,694.79,0.28785676]
[1736624432287,1.07545201,695.93,694.79,0.28785676]
[1736624435089,1.07545201,695.94,694.79,0.28785676]
[1736624435889,1.07545201,695.95,694.79,0.28785676]
[1736624436991,1.07545201,695.99,694.79,0.28785676]
[1736624438793,1.07545201,696.27,694.79,0.28785676]
[1736624438993,0.28724901,696.26,694.79,0.28785676]
[1736624448200,0.26417249,696.25,694.79,0.28785676]
[1736624448993,1.07545201,696.06,694.79,0.28785676]
[1736624450698,1.07545201,696.07,694.79,0.28785676]
[1736624451700,1.07545201,696.06,694.79,0.28785676]
[1736624453593,1.07545201,696.09,694.79,0.28785676]
[1736624454500,1.07545201,696.11,694.79,0.28785676]
[1736624455497,1.07545201,696.1,694.79,0.28785676]
[1736624457700,1.07545201,696.09,694.79,0.28785676]
[1736624459402,1.07545201,696.08,694.79,0.28785676]
[1736624460601,1.07545201,696.09,694.79,0.28785676]
[1736624461603,1.07545201,696.17,694.85,1.29026922]
[1736624461808,1.07545201,696.17,694.86,0.28782776]
[1736624462508,1.07545201,696.21,694.88,1.29026922]
[1736624463605,0.28724901,696.26,694.91,1.29026922]
[1736624464109,0.28724901,696.26,694.92,0.28780291]
[1736624468501,1.36270102,696.26,694.92,0.28780291]
[1736624470307,1.07545201,696.25,694.92,0.28780291]
[1736624471505,1.07545201,696.22,694.92,0.28780291]
[1736624472507,1.07545201,696.2,694.92,0.28780291]
[1736624474708,1.07545201,696.21,694.92,0.28780291]
[1736624476512,1.07545201,696.25,694.92,0.28780291]
[1736624477307,0.28724901,696.26,694.92,0.28780291]
[1736624483013,1.07545201,696.24,694.92,0.28780291]
[1736624483916,0.28724901,696.26,694.92,0.28780291]
[1736624483917,1.07545201,696.25,694.92,0.28780291]
[1736624485021,1.07545201,696.19,694.92,0.28780291]
[1736624487022,1.07545201,696.21,694.92,0.28780291]
[1736624487619,1.07545201,696.18,694.92,0.28780291]
[1736624489028,1.07545201,696.17,694.92,0.28780291]
[1736624490022,1.07545201,696.16,694.92,0.28780291]
[1736624490827,1.07545201,696.2,694.95,1.29026922]
[1736624491019,1.07545201,696.2,694.96,0.28778634]
[1736624492727,1.07545201,696.18,694.96,0.28778634]
[1736624493530,1.07545201,696.17,694.96,1.57805556]
[1736624494827,1.07545201,696.16,694.96,1.57805556]
[1736624495828,1.07545201,696.14,694.97,1.29026922]
[1736624496331,1.07545201,696.14,694.98,0.28777806]
[1736624496731,0.28724901,696.26,694.98,0.28777806]
[1736624496732,1.07545201,696.13,694.99,1.29026922]
[1736624497031,1.07545201,696.13,695.0,0.28776978]
[1736624498032,1.07545201,696.09,695.0,0.28776978]
[1736624509536,1.07545201,696.08,695.0,0.28776978]
[1736624511543,1.07545201,696.07,695.0,0.28776978]
[1736624512243,1.07545201,696.08,695.0,0.28776978]
[1736624513443,1.07545201,696.09,695.0,0.28776978]
[1736624514243,0.28724901,696.26,695.0,0.28776978]
[1736624514244,1.07545201,696.16,695.03,1.29026922]
[1736624514838,1.07545201,696.21,695.0,0.28776978]
[1736624515941,1.07545201,696.2,695.0,0.28776978]
[1736624516944,1.07545201,696.22,695.0,0.28776978]
[1736624518639,0.28724901,696.26,695.0,0.28776978]
[1736624518640,1.07545201,696.23,695.0,0.28776978]
[1736624520546,1.07545201,696.18,695.0,0.28776978]
[1736624521547,1.07545201,696.17,695.0,0.28776978]
[1736624522447,1.07545201,696.19,695.0,0.28776978]
[1736624524846,1.07545201,696.1,695.0,0.28776978]
[1736624527446,1.07545201,696.11,695.0,0.28776978]
[1736624529044,1.07545201,696.17,695.0,0.28776978]
[1736624530741,1.07545201,696.13,695.0,0.28776978]
[1736624531844,1.07545201,696.16,695.0,0.28776978]
[1736624533852,1.07545201,696.15,695.0,0.28776978]
[1736624534746,1.07545201,696.16,695.0,0.28776978]
[1736624536547,1.07545201,696.09,695.0,0.28776978]
[1736624539649,1.07545201,696.08,695.0,0.28776978]
[1736624540652,0.28724901,696.26,695.0,0.28776978]
[1736624551458,1.07545201,696.13,695.0,0.28776978]
[1736624552358,1.07545201,696.15,695.0,0.28776978]
[1736624553360,1.07545201,696.13,695.0,0.28776978]
[1736624553960,1.07545201,696.16,695.0,0.28776978]
[1736624555263,1.07545201,696.17,695.0,0.28776978]
[1736624556257,0.28724901,696.26,695.0,0.28776978]
[1736624556258,1.07545201,696.19,695.0,0.28776978]
[1736624558465,0.28724901,696.26,695.0,0.28776978]
[1736624558466,1.07545201,696.17,695.0,0.28776978]
[1736624561572,1.07545201,696.08,695.0,0.28776978]
[1736624562570,1.07545201,696.05,695.0,0.28776978]
[1736624563468,1.07545201,696.02,695.0,0.28776978]
[1736624564673,1.07545201,696.05,695.0,0.28776978]
[1736624565876,1.07545201,696.09,695.0,0.28776978]
[1736624566976,1.07545201,696.1,695.0,0.28776978]
[1736624568277,1.07545201,696.11,695.0,0.28776978]
[1736624568475,0.26419457,696.1,695.0,0.28776978]
[1736624569378,1.07545201,696.11,695.0,0.28776978]
[1736624569578,0.26419272,696.1,695.0,0.28776978]
[1736624570575,1.07545201,696.09,695.0,0.28776978]
[1736624570777,0.26419272,696.08,695.0,0.28776978]
[1736624572280,0.2642051,696.07,695.0,0.28776978]
[1736624572478,1.07545201,696.09,695.0,0.28776978]
[1736624572673,0.2642051,696.08,695.0,0.28776978]
[1736624573776,1.07545201,696.04,695.0,0.28776978]
[1736624575678,1.07545201,696.03,695.0,0.28776978]
[1736624577483,1.07545201,696.02,695.0,0.28776978]
[1736624578285,1.07545201,696.01,695.0,0.28776978]
[1736624579487,1.07545201,696.0,695.0,0.28776978]
[1736624580685,1.07545201,695.98,695.0,0.28776978]
[1736624581689,1.07545201,695.99,695.0,0.28776978]
[1736624582585,1.07545201,695.97,695.0,0.28776978]
[1736624583585,1.07545201,696.03,695.0,0.28776978]
[1736624584189,1.07545201,696.02,695.0,0.28776978]
[1736624584986,1.07545201,696.0,695.0,0.28776978]
[1736624587289,1.07545201,696.03,695.0,0.28776978]
[1736624588995,1.07545201,695.97,695.0,0.28776978]
[1736624590787,1.07545201,695.93,695.0,0.28776978]
[1736624592090,1.07545201,695.92,695.0,0.28776978]
[1736624594592,1.07545201,695.93,695.0,0.28776978]
[1736624595292,1.07545201,696.0,695.0,0.28776978]
[1736624596496,1.07545201,696.01,695.0,0.28776978]
[1736624597194,1.07545201,696.0,695.0,0.28776978]
[1736624598094,1.07545201,696.01,695.0,0.28776978]
[1736624600196,1.07545201,696.23,695.0,0.28776978]
[1736624600197,1.07545201,696.02,695.0,0.28776978]
[1736624602090,1.07545201,696.03,695.0,0.28776978]
[1736624603295,1.07545201,696.08,695.0,0.28776978]
[1736624604797,1.07545201,696.01,695.0,0.28776978]
[1736624606098,1.07545201,696.02,695.0,0.28776978]
[1736624609706,1.07545201,696.2,695.0,0.28776978]
[1736624609707,1.07545201,696.01,695.0,0.28776978]
[1736624610601,1.07545201,695.96,695.0,0.28776978]
[1736624612905,1.07545201,695.95,695.0,0.28776978]
[1736624613698,1.07545201,695.94,695.0,0.28776978]
[1736624614905,1.07545201,695.92,695.0,0.28776978]
[1736624616002,1.07545201,695.91,695.0,0.28776978]
[1736624617505,1.07545201,695.9,695.0,0.28776978]
[1736624619509,0.88931496,696.25,695.0,0.28776978]
[1736624619510,1.07545201,695.96,695.0,0.28776978]
[1736624620010,1.07545201,695.95,695.0,0.28776978]
[1736624621310,1.07545201,695.93,695.0,0.28776978]
[1736624622012,1.07545201,696.12,695.0,0.28776978]
[1736624622013,1.07545201,695.94,695.0,0.28776978]
[1736624623611,1.07545201,695.94,694.74,1.29026922]
[1736624623811,1.07545201,695.94,694.74,4.35226634]
[1736624624011,1.07545201,695.94,694.75,2.87263722]
[1736624625005,1.07545201,695.94,694.75,5.93463434]
[1736624625211,1.07545201,695.91,694.76,2.87263722]
[1736624626313,0.88931496,696.25,694.69,3.06199712]
[1736624626314,1.07545201,695.85,694.7,2.87263722]
[1736624627214,1.07545201,695.84,694.7,2.87263722]
[1736624627810,1.07545201,695.84,694.6,2.87263722]
[1736624628116,1.07545201,695.85,694.61,0.28793135]
[1736624631012,1.07545201,695.83,694.61,0.28793135]
[1736624632524,1.07545201,695.84,694.61,0.28793135]
[1736624633516,1.07545201,695.89,694.61,0.28793135]
[1736624634518,1.50139677,696.19,694.61,0.28793135]
[1736624634519,1.07545201,695.9,694.61,0.28793135]
[1736624635521,1.07545201,695.89,694.61,0.28793135]
[1736624636318,1.07545201,695.9,694.61,0.28793135]
[1736624637217,1.07545201,695.91,694.61,0.28793135]
[1736624639217,1.07545201,695.93,694.61,0.28793135]
[1736624641722,1.07545201,695.97,694.61,0.28793135]
[1736624644120,1.07545201,695.98,694.61,0.28793135]
[1736624645419,1.07545201,695.99,694.61,0.28793135]
[1736624646223,1.07545201,695.98,694.61,0.28793135]
[1736624646925,1.07545201,695.98,694.61,1.57820057]
[1736624647721,1.07545201,696.25,694.61,0.28793135]
[1736624647925,0.28725726,696.24,694.61,0.28793135]
[1736624648523,1.36270927,696.24,694.61,0.28793135]
[1736624649629,1.07545201,696.18,694.61,0.28793135]
[1736624649829,0.28728615,696.17,694.61,0.28793135]
[1736624651423,1.36273816,696.17,694.61,0.28793135]
[1736624652532,1.07545201,696.16,694.61,0.28793135]
[1736624652733,0.2872944,696.15,694.61,0.28793135]
[1736624653332,1.36274641,696.15,694.61,0.28793135]
[1736624655336,1.07545201,696.14,694.61,0.28793135]
[1736624655536,0.28730265,696.13,694.61,0.28793135]
[1736624657238,0.26423483,696.12,694.61,0.28793135]
[1736624657538,0.28731091,696.11,694.61,0.28793135]
[1736624657833,0.26423483,696.1,694.61,0.28793135]
[1736624658039,0.28731916,696.09,694.61,0.28793135]
[1736624659041,1.07545201,695.92,694.61,0.28793135]
[1736624663944,1.07545201,695.82,694.63,1.29026922]
[1736624664145,1.07545201,695.82,694.64,0.28791892]
[1736624668645,1.07545201,695.84,694.64,0.28791892]
[1736624669439,1.07545201,695.85,694.64,0.28791892]
[1736624670245,1.07545201,695.84,694.64,0.28791892]
[1736624671146,1.07545201,695.89,694.7,1.29026922]
[1736624671948,1.07545201,695.9,694.66,1.29026922]
[1736624672944,1.07545201,695.88,694.68,1.29026922]
[1736624673851,1.07545201,695.88,694.69,1.29026922]
[1736624674743,1.07545201,695.88,694.7,1.29026922]
[1736624675450,1.07545201,695.88,694.71,1.29026922]
[1736624676444,1.07545201,695.88,694.7,1.29026922]
[1736624677449,1.07545201,695.88,694.7,4.16192132]
[1736624678248,0.28731916,696.09,694.7,4.16192132]
[1736624678249,1.07545201,695.81,694.71,3.05735723]
[1736624678449,1.07545201,695.81,694.71,5.930464]
[1736624678648,1.07545201,695.81,694.72,1.84487867]
[1736624679243,1.07545201,695.91,694.71,3.05735723]
[1736624679643,1.07545201,695.91,694.71,5.93058069]
[1736624679843,1.07545201,695.91,694.72,1.84487867]
[1736624680048,1.07545201,695.9,694.64,0.28791892]
[1736624686048,1.07545201,695.91,694.64,0.28791892]
[1736624686849,1.07545201,695.9,694.64,0.28791892]
[1736624688953,1.07545201,695.86,694.64,0.28791892]
[1736624690555,1.07545201,695.87,694.64,0.28791892]
[1736624694057,1.07545201,695.91,694.64,0.28791892]
[1736624695459,1.07545201,695.92,694.65,1.29026922]
[1736624695661,1.07545201,695.92,694.66,0.28791063]
[1736624696459,1.07545201,695.91,694.66,0.28791063]
[1736624697555,1.07545201,695.92,694.66,0.28791063]
[1736624698257,0.28731916,696.09,694.66,0.28791063]
[1736624698258,1.07545201,695.89,694.71,1.29026922]
[1736624699362,1.07545201,696.08,694.66,3.34526786]
[1736624699363,1.07545201,695.88,694.76,1.29026922]
[1736624700160,1.07545201,695.88,694.75,1.29026922]
[1736624701265,1.07545201,695.84,694.72,1.29026922]
[1736624702262,1.07545201,695.85,694.72,1.29026922]
[1736624703057,1.07545201,695.83,694.71,4.16348471]
[1736624703261,1.07545201,695.83,694.71,4.45137462]
[1736624703760,1.07545201,695.84,694.72,1.29026922]
[1736624703963,1.07545201,695.84,694.72,4.34762645]
[1736624704163,1.07545201,695.84,694.73,2.87321549]
[1736624704864,1.07545201,695.85,694.73,2.87321549]
[1736624705557,1.07545201,695.85,694.73,5.93057272]
[1736624705761,1.07545201,695.85,694.74,2.87321549]
[1736624708667,1.07545201,695.89,694.75,1.29026922]
[1736624709265,1.07545201,695.89,694.75,4.34762645]
[1736624709467,1.07545201,695.89,694.76,2.87321549]
[1736624710967,1.07545201,695.89,694.76,5.93057272]
[1736624711265,1.07545201,695.89,694.77,2.87321549]
[1736624712168,1.07545201,695.88,694.77,2.87321549]
[1736624712562,1.07545201,695.88,694.76,2.87321549]
[1736624714167,1.07545201,695.88,694.76,5.93057272]
[1736624714363,1.07545201,695.87,694.77,2.87321549]
[1736624716069,1.07545201,695.87,694.76,2.87321549]
[1736624716467,1.07545201,695.82,694.76,2.87321549]
[1736624717269,1.07545201,695.81,694.76,2.87321549]
[1736624717869,1.07545201,695.81,694.71,0.28788991]
[1736624720269,1.07545201,695.82,694.71,0.28788991]
[1736624721069,1.07545201,695.82,694.71,3.1611054]
[1736624721374,1.07545201,695.81,694.71,3.1611054]
[1736624722476,1.07545201,695.82,694.71,3.1611054]
[1736624723375,1.07545201,695.81,694.71,3.1611054]
[1736624724177,1.07545201,695.82,694.71,3.1611054]
[1736624725380,1.07545201,695.82,694.71,6.21846263]
[1736624725577,1.07545201,695.82,694.72,2.87321549]
[1736624731890,1.07545201,695.82,694.71,3.34524714]
[1736624732685,0.28731916,696.09,694.71,3.34524714]
[1736624732891,0.28731916,696.09,694.71,0.28788991]
[1736624742895,1.07545201,695.94,694.71,0.28788991]
[1736624744995,1.07545201,695.93,694.71,0.28788991]
[1736624745895,1.07545201,695.95,694.71,0.28788991]
[1736624746694,1.07545201,695.97,694.71,0.28788991]
[1736624747593,1.07545201,695.96,694.71,0.28788991]
[1736624748492,1.07545201,695.97,694.71,0.28788991]
[1736624749399,1.07545201,695.96,694.71,0.28788991]
[1736624750298,1.07545201,695.97,694.71,0.28788991]
[1736624750999,1.07545201,695.96,694.71,0.28788991]
[1736624753999,0.28731916,696.09,694.71,0.28788991]
[1736624754000,1.07545201,695.92,694.71,0.28788991]
[1736624755003,1.07545201,695.91,694.71,0.28788991]
[1736624755703,1.07545201,695.92,694.71,0.28788991]
[1736624759509,1.07545201,695.91,694.71,0.28788991]
[1736624761405,1.07545201,695.82,694.71,0.28788991]
[1736624762310,1.07545201,695.87,694.72,1.29026922]
[1736624765715,1.07545201,695.87,694.73,1.29026922]
[1736624766610,1.07545201,695.86,694.72,1.29026922]
[1736624767114,1.07545201,695.86,694.72,2.31937651]
[1736624767316,1.07545201,695.86,694.72,4.16861246]
[1736624767708,1.07545201,695.85,694.72,2.87834324]
[1736624768109,1.07545201,695.85,694.72,5.94294249]
[1736624768309,1.07545201,695.85,694.73,2.87834324]
[1736624769213,1.07545201,695.8,694.73,2.87834324]
[1736624770011,1.07545201,695.8,694.71,0.28788991]
[1736624770215,1.07545201,695.81,694.71,0.28788991]
[1736624772413,1.07545201,695.8,694.71,0.28788991]
[1736624773317,1.07545201,695.82,694.71,0.28788991]
[1736624775120,0.28731916,696.09,694.71,0.28788991]
[1736624788329,0.26421454,696.08,694.71,0.28788991]
[1736624789932,1.07545201,696.04,694.71,0.28788991]
[1736624790133,0.26421454,696.03,694.71,0.28788991]
[1736624790525,1.07545201,696.03,694.71,0.28788991]
[1736624792636,1.07545201,695.98,694.71,0.28788991]
[1736624794333,1.07545201,695.99,694.71,0.28788991]
[1736624795331,1.07545201,695.97,694.71,0.28788991]
[1736624796129,1.07545201,695.96,694.71,0.28788991]
[1736624799939,1.07545201,696.0,694.71,0.28788991]
[1736624806246,1.36277117,696.09,694.71,0.28788991]
[1736624807547,1.07545201,696.07,694.71,0.28788991]
[1736624807848,0.28733155,696.06,694.71,0.28788991]
[1736624813353,1.07545201,696.05,694.71,0.28788991]
[1736624813652,0.2873398,696.04,694.71,0.28788991]
[1736624814354,1.36279181,696.04,694.71,0.28788991]
[1736624814755,0.26424091,696.03,694.71,0.28788991]
[1736624815256,1.07545201,695.89,694.71,0.28788991]
[1736624816451,1.07545201,695.92,694.71,0.28788991]
[1736624818456,1.07545201,695.93,694.71,0.28788991]
[1736624820659,1.07545201,695.9,694.71,0.28788991]
[1736624821458,1.07545201,696.0,694.71,0.28788991]
[1736624822360,0.2873398,696.04,694.72,1.29026922]
[1736624822658,0.2873398,696.04,694.73,0.28788162]
[1736624823260,0.2873398,696.04,694.73,1.57815084]
[1736624823962,0.2873398,696.04,694.73,0.28788162]
[1736624825759,0.2873398,696.04,694.75,1.29026922]
[1736624825958,0.2873398,696.04,694.76,0.28786919]
[1736624826560,0.2873398,696.04,694.77,1.29026922]
[1736624826754,0.2873398,696.04,694.78,0.2878609]
[1736624853080,0.2873398,696.04,694.78,1.57813012]
[1736624854587,0.2873398,696.04,694.78,0.2878609]
[1736624855486,1.07545201,696.02,694.78,0.2878609]
[1736624856488,0.2873398,696.04,694.78,0.2878609]
[1736624856489,1.07545201,696.0,694.78,0.2878609]
[1736624858389,1.07545201,695.91,694.78,0.2878609]
[1736624859482,1.07545201,695.87,694.78,0.2878609]
[1736624860690,1.07545201,695.89,694.78,0.2878609]
[1736624861981,0.2873398,696.04,694.78,0.2878609]
[1736624861982,1.07545201,695.95,694.78,0.2878609]
[1736624863987,1.07545201,695.96,694.78,0.2878609]
[1736624864587,1.07545201,695.95,694.78,0.2878609]
[1736624866292,1.07545201,695.98,694.78,0.2878609]
[1736624867391,1.07545201,695.97,694.78,0.2878609]
[1736624868092,1.07545201,695.98,694.78,0.2878609]
[1736624869193,1.07545201,695.99,694.78,0.2878609]
[1736624871192,1.07545201,696.01,694.78,0.2878609]
[1736624871987,1.07545201,696.0,694.78,0.2878609]
[1736624873692,0.2873398,696.04,694.78,0.2878609]
[1736624910724,0.2873398,696.04,694.81,1.29026922]
[1736624910925,0.2873398,696.04,694.82,0.28784433]
[1736624912623,0.2873398,696.04,694.82,1.57811355]
[1736624913634,1.36279181,696.04,694.82,0.28784433]
[1736624914734,1.07545201,696.03,694.82,0.28784433]
[1736624916836,1.07545201,696.02,694.82,0.28784433]
[1736624917934,1.07545201,696.01,694.82,0.28784433]
[1736624919037,1.07545201,696.0,694.82,0.28784433]
[1736624919841,1.07545201,695.95,694.82,0.28784433]
[1736624922737,1.07545201,695.94,694.82,0.28784433]
[1736624924844,1.07545201,695.95,694.82,0.28784433]
[1736624925841,0.2873398,696.04,694.82,0.28784433]
[1736624969063,1.36279181,696.04,694.82,0.28784433]
[1736624969667,0.26422369,696.03,694.82,0.28784433]
[1736624970268,1.3396757,696.03,694.82,0.28784433]
[1736624970467,1.07545201,696.03,694.82,0.28784433]
[1736624970663,0.26422384,696.02,694.82,0.28784433]
[1736624971068,1.07545201,695.97,694.82,0.28784433]
[1736624972663,1.07545201,696.0,694.82,0.28784433]
[1736624973668,1.07545201,696.02,694.82,0.28784433]
[1736624974570,0.2873398,696.04,694.82,0.28784433]
[1736624975272,1.07545201,696.03,694.82,0.28784433]
[1736624976172,1.07545201,696.02,694.82,0.28784433]
[1736624976868,1.07545201,696.01,694.82,0.28784433]
[1736624979166,0.2873398,696.04,694.82,0.28784433]
[1736624994788,1.07545201,696.02,694.82,0.28784433]
[1736624995983,1.07545201,695.96,694.82,0.28784433]
[1736624997784,1.07545201,695.97,694.82,0.28784433]
[1736624998989,1.07545201,695.88,694.82,0.28784433]
[1736625001089,1.07545201,695.94,694.82,0.28784433]
[1736625002088,1.07545201,695.99,694.82,0.28784433]
[1736625002890,1.07545201,695.98,694.82,0.28784433]
[1736625004288,1.07545201,695.99,694.82,0.28784433]
[1736625006691,1.07545201,695.98,694.82,0.28784433]
[1736625008190,1.07545201,696.0,694.82,0.28784433]
[1736625008994,1.07545201,695.94,694.82,0.28784433]
[1736625010094,0.2873398,696.04,694.82,0.28784433]
[1736625010095,1.07545201,695.95,694.82,0.28784433]
[1736625011091,1.07545201,695.84,694.82,0.28784433]
[1736625011594,0.2873398,696.04,694.82,0.28784433]
[1736625011595,1.07545201,695.85,694.82,0.28784433]
[1736625012388,1.07545201,695.86,694.82,0.28784433]
[1736625013194,1.07545201,695.82,694.82,0.28784433]
[1736625014095,1.07545201,695.85,694.82,0.28784433]
[1736625015597,1.07545201,695.84,694.82,0.28784433]
[1736625016497,1.07545201,695.86,694.82,0.28784433]
[1736625017895,1.07545201,695.9,694.82,0.28784433]
[1736625018699,1.07545201,695.89,694.82,0.28784433]
[1736625019898,1.07545201,695.9,694.82,0.28784433]
[1736625022400,1.07545201,695.89,694.82,0.28784433]
[1736625023398,1.07545201,695.9,694.82,0.28784433]
[1736625024502,1.07545201,695.89,694.82,0.28784433]
[1736625026605,1.07545201,695.9,694.82,0.28784433]
[1736625028307,1.07545201,695.89,694.82,0.28784433]
[1736625029107,1.07545201,695.88,694.82,0.28784433]
[1736625030303,1.07545201,695.89,694.82,0.28784433]
[1736625031502,1.07545201,695.91,694.82,0.28784433]
[1736625032412,1.07545201,695.9,694.82,0.28784433]
[1736625033411,1.07545201,695.89,694.82,0.28784433]
[1736625034911,1.07545201,695.88,694.82,0.28784433]
[1736625035711,1.07545201,695.87,694.82,0.28784433]
[1736625037012,1.07545201,695.88,694.82,0.28784433]
[1736625038007,1.07545201,695.87,694.82,0.28784433]
[1736625040016,1.07545201,695.84,694.82,0.28784433]
[1736625045014,1.07545201,695.85,694.82,0.28784433]
[1736625046017,1.07545201,695.86,694.82,0.28784433]
[1736625049118,1.07545201,695.85,694.82,0.28784433]
[1736625054120,1.07545201,695.96,694.82,0.28784433]
[1736625055021,1.07545201,696.03,694.82,0.28784433]
[1736625059523,1.07545201,696.02,694.82,0.28784433]
[1736625061519,1.07545201,695.94,694.82,0.28784433]
[1736625064628,1.07545201,695.83,694.82,0.28784433]
[1736625065633,1.07545201,695.84,694.82,0.28784433]
[1736625067733,1.07545201,695.85,694.82,0.28784433]
[1736625069337,1.07545201,695.84,694.82,0.28784433]
[1736625069939,1.07545201,695.89,694.82,0.28784433]
[1736625074539,0.2873398,696.04,694.82,0.28784433]
[1736625074540,1.07545201,695.88,694.82,0.28784433]
[1736625075543,1.07545201,695.89,694.82,0.28784433]
[1736625076737,1.07545201,695.85,694.82,0.28784433]
[1736625077944,1.07545201,695.84,694.82,0.28784433]
[1736625078845,1.07545201,695.82,694.82,0.28784433]
[1736625079739,1.07545201,695.81,694.82,0.28784433]
[1736625080746,0.8906665,696.03,694.82,0.28784433]
[1736625080945,0.28734806,696.02,694.82,0.28784433]
[1736625091445,1.07545201,696.01,694.82,0.28784433]
[1736625091647,0.28735632,696.0,694.82,0.28784433]
[1736625095151,1.36280833,696.0,694.82,0.28784433]
[1736625095950,1.07545201,695.97,694.82,0.28784433]
[1736625096349,0.26426516,695.96,694.82,0.28784433]
[1736625096651,1.07545201,695.97,694.82,0.28784433]
[1736625096851,0.26426436,695.96,694.82,0.28784433]